bitfinex-derivatives/quotes_ETHF0:USTF0_20250923
["timestamp","ask_amount","ask_price","bid_price","bid_amount"]
[1758635372365,0.53202644,4193.1,4193.0,0.3209]
[1758635372553,3.63674,4193.6,4193.0,0.4505]
[1758635372754,0.53196009,4193.5,4193.4,0.74985]
[1758635372963,3.2078,4193.6,4193.4,0.74985]
[1758635373156,3.5279,4193.6,4193.4,0.74985]
[1758635373356,0.251,4194.1,4193.9,0.7498]
[1758635373557,0.53203203,4194.0,4193.9,0.7498]
[1758635374456,3.2078,4194.3,4194.2,0.74977]
[1758635374655,3.74004142,4194.3,4194.2,0.74977]
[1758635374862,3.74004142,4194.3,4194.2,0.3209]
[1758635375362,0.42889,4194.1,4193.6,0.74983]
[1758635375564,0.3201,4194.2,4193.5,0.4505]
[1758635375759,3.2078,4194.3,4194.2,0.42887]
[1758635375959,3.2078,4194.8,4194.7,0.3209]
[1758635376158,3.74020396,4194.8,4194.7,0.3209]
[1758635377163,0.53240396,4194.8,4194.7,0.3209]
[1758635377864,0.53240396,4194.8,4194.5,3.5287]
[1758635378056,0.3201,4195.0,4194.7,0.42882]
[1758635378261,0.251,4195.2,4194.7,0.42882]
[1758635378262,0.96113706,4194.9,4194.7,0.42882]
[1758635378466,0.42882,4194.8,4194.5,3.63664]
[1758635378654,0.3201,4194.6,4194.5,3.2078]
[1758635378857,0.3201,4194.4,4194.3,0.42886]
[1758635379062,0.1252,4195.0,4194.2,0.3209]
[1758635379063,0.251,4195.0,4194.2,0.3209]
[1758635379372,0.3201,4194.4,4194.1,1.00078]
[1758635379669,0.3201,4194.3,4194.0,3.5287]
[1758635379970,0.3201,4194.3,4194.1,0.74978]
[1758635380175,0.74891,4194.8,4194.5,0.74974]
[1758635380467,0.3201,4194.4,4194.3,0.74976]
[1758635380869,0.3201,4194.9,4194.4,0.42885]
[1758635381063,0.42883,4194.6,4194.4,0.42885]
[1758635381263,0.3201,4194.8,4194.0,3.5287]
[1758635381472,0.53214624,4194.7,4194.0,3.5287]
[1758635381769,0.74897,4194.2,4194.0,3.95759]
[1758635382072,0.3201,4194.1,4194.0,3.2078]
[1758635382372,1.07209,4194.6,4194.0,3.2078]
[1758635382373,0.74895,4194.4,4194.2,0.42887]
[1758635382573,0.3201,4194.2,4194.0,3.2078]
[1758635382761,0.3201,4194.1,4194.0,3.2078]
[1758635383672,0.251,4194.6,4194.1,0.3209]
[1758635383971,0.85248882,4194.5,4194.4,0.3209]
[1758635384172,0.53238882,4194.5,4194.4,0.3209]
[1758635384671,0.53238882,4194.5,4194.3,0.42886]
[1758635384868,3.63662,4194.8,4194.6,0.3209]
[1758635385167,0.42884,4194.6,4194.0,3.3374]
[1758635385375,0.53264262,4194.5,4194.1,0.3209]
[1758635385574,0.3201,4194.3,4194.1,0.74978]
[1758635385770,0.3201,4194.3,4194.2,0.3209]
[1758635386072,3.2078,4194.8,4194.6,0.42883]
[1758635386280,3.2078,4195.4,4195.3,0.74966]
[1758635386574,0.96156866,4195.4,4195.3,0.3209]
[1758635386776,1.28166866,4195.4,4195.3,0.3209]
[1758635386975,1.28166866,4195.4,4195.2,0.42877]
[1758635387173,0.53281866,4195.3,4194.7,0.3209]
[1758635387377,0.251,4195.6,4195.2,0.42877]
[1758635387580,0.74885,4195.4,4195.3,0.3209]
[1758635387879,0.42878,4195.2,4194.7,0.3209]
[1758635388075,0.42878,4195.2,4195.1,0.3209]
[1758635388476,0.96143297,4195.2,4195.1,0.3209]
[1758635388674,0.53265297,4195.2,4195.1,0.74968]
[1758635388976,0.53265297,4195.2,4194.6,0.251]
[1758635389176,0.3201,4195.4,4195.0,0.42879]
[1758635389376,0.3201,4195.2,4195.0,0.74969]
[1758635389565,0.1252,4195.5,4195.0,0.74969]
[1758635389769,0.4288,4195.0,4194.6,0.5719]
[1758635389969,0.74886,4195.3,4194.6,0.251]
[1758635390178,0.3201,4194.7,4194.5,3.63664]
[1758635390382,0.3201,4194.7,4194.5,4.20754]
[1758635390567,0.3201,4194.7,4194.6,0.74973]
[1758635390772,0.42883,4194.6,4194.5,3.2078]
[1758635390975,0.74893,4194.6,4194.5,0.3209]
[1758635391173,0.42885,4194.4,4194.3,0.3209]
[1758635391374,0.74892,4194.7,4194.5,0.74974]
[1758635391567,0.53235804,4194.6,4194.1,0.25]
[1758635391777,0.65757137,4194.5,4193.7,0.3209]
[1758635391979,0.53237137,4194.4,4194.0,0.1296]
[1758635392171,0.85247137,4194.3,4194.2,0.42887]
[1758635392368,0.53237137,4194.3,4194.2,0.42887]
[1758635392586,3.2078,4195.2,4194.3,0.3209]
[1758635392782,0.85250447,4195.1,4195.0,0.3209]
[1758635392968,0.4474,4195.0,4194.5,0.3326]
[1758635393173,0.3165,4194.8,4194.7,0.42882]
[1758635393369,0.3165,4194.7,4194.0,3.2078]
[1758635393576,0.42888,4194.1,4194.0,3.2078]
[1758635393880,0.74538,4194.1,4194.0,3.2078]
[1758635394177,0.74538,4194.1,4193.1,0.3326]
[1758635394178,0.3165,4193.4,4193.1,0.3326]
[1758635394385,0.3165,4193.4,4193.3,0.3326]
[1758635395874,0.1309,4193.5,4193.0,0.3326]
[1758635396082,0.42898,4193.2,4193.0,0.3326]
[1758635396378,0.3165,4193.0,4192.9,3.2078]
[1758635396575,0.3165,4193.2,4193.1,0.3326]
[1758635396883,0.3165,4193.4,4193.3,0.42896]
[1758635397080,0.74546,4193.4,4193.3,0.3326]
[1758635397676,0.42897,4193.3,4193.0,0.42899]
[1758635397884,0.3165,4193.2,4193.1,0.3326]
[1758635398173,0.3165,4192.7,4192.4,3.2078]
[1758635398480,0.3165,4192.6,4192.5,0.42904]
[1758635398879,0.3165,4192.6,4192.5,0.76164]
[1758635399384,0.1309,4193.0,4192.4,3.2078]
[1758635399385,0.74555,4192.5,4192.4,3.2078]
[1758635399680,0.87645,4192.5,4192.4,3.2078]
[1758635399881,1.40878209,4192.5,4192.4,3.2078]
[1758635400182,0.74561,4191.9,4191.8,3.2078]
[1758635400485,1.27814713,4191.9,4191.8,3.2078]
[1758635400675,0.53253713,4191.9,4191.8,3.96952]
[1758635401183,1.0726,4192.6,4191.9,0.3326]
[1758635401380,0.42908,4192.2,4191.9,0.76171]
[1758635401675,0.74559,4192.1,4192.0,0.3326]
[1758635401882,0.4291,4192.0,4191.8,3.63692]
[1758635402281,0.74557,4192.3,4192.1,0.42908]
[1758635402480,0.3165,4192.3,4192.2,0.3326]
[1758635402985,0.84896893,4192.3,4192.2,0.3326]
[1758635403373,0.53246893,4192.3,4192.2,0.76168]
[1758635403679,3.5243,4193.6,4192.5,0.1324]
[1758635403882,0.53218115,4193.5,4193.4,0.3326]
[1758635404188,0.42895,4193.4,4192.9,3.2078]
[1758635404389,0.84868115,4193.3,4192.9,3.2078]
[1758635404685,0.3165,4193.1,4192.5,0.1324]
[1758635404986,0.3165,4192.9,4192.6,0.251]
[1758635405193,0.1309,4193.0,4192.6,0.251]
[1758635405487,0.3165,4193.2,4193.0,0.3326]
[1758635405688,0.8484564,4193.1,4192.6,0.251]
[1758635405988,0.251,4193.3,4192.7,0.3326]
[1758635406179,0.53195406,4193.2,4192.6,0.251]
[1758635406381,0.3165,4193.4,4193.1,0.42898]
[1758635406579,0.3165,4193.2,4192.6,0.3326]
[1758635406889,0.78286466,4193.1,4192.5,0.3326]
[1758635407092,0.3165,4192.5,4192.3,3.2078]
[1758635407276,0.5599,4193.0,4192.5,0.42904]
[1758635407480,0.42902,4192.8,4192.6,0.3326]
[1758635407684,0.3165,4192.4,4192.3,3.5404]
[1758635407990,0.3165,4192.4,4186.8,0.2386]
[1758635407991,0.3165,4191.9,4191.3,3.5404]
[1758635408284,0.251,4192.1,4191.7,0.3326]
[1758635408486,3.63676,4193.4,4192.1,0.3326]
[1758635408786,3.63676,4193.4,4193.1,0.3326]
[1758635408787,0.96051323,4193.3,4193.1,0.3326]
[1758635409084,1.07257,4192.7,4192.0,3.2078]
[1758635409387,0.3165,4192.1,4192.0,3.2078]
[1758635410184,0.3165,4192.1,4192.0,3.5404]
[1758635410388,0.3165,4192.1,4192.0,3.2078]
[1758635410787,0.251,4192.4,4191.3,3.63697]
[1758635410788,0.3165,4191.6,4191.3,3.63697]
[1758635411092,0.251,4192.4,4191.4,0.3326]
[1758635411093,3.5243,4192.0,4191.4,0.3326]
[1758635411278,3.5243,4192.0,4191.7,0.42912]
[1758635411279,0.3165,4191.9,4191.7,0.42912]
[1758635411479,0.3165,4191.9,4191.7,0.76172]
[1758635411679,3.2078,4192.0,4191.7,0.76172]
[1758635411877,3.2078,4192.0,4191.9,0.42911]
[1758635412082,3.2078,4192.0,4191.9,0.73541]
[1758635413080,0.3081,4192.3,4192.2,0.42908]
[1758635413280,0.5591,4192.3,4192.2,0.73538]
[1758635413589,0.42908,4192.2,4191.6,0.3063]
[1758635413794,0.3081,4192.1,4191.9,0.42911]
[1758635414083,0.3081,4192.2,4191.3,3.2078]
[1758635414279,0.42912,4191.9,4191.6,0.42913]
[1758635414487,0.68012,4191.9,4191.6,0.42913]
[1758635414686,0.3081,4191.7,4191.6,0.42913]
[1758635415090,0.251,4192.0,4191.8,0.3063]
[1758635415287,0.3081,4191.8,4191.0,3.637]
[1758635415487,0.42912,4191.8,4191.4,0.73545]
[1758635415689,3.7601,4192.0,4191.6,0.3063]
[1758635415893,0.251,4191.9,4191.1,0.3063]
[1758635416086,0.68011,4191.9,4191.7,0.42913]
[1758635416282,3.2078,4192.0,4191.9,0.73541]
[1758635416490,0.3081,4192.5,4192.4,0.42906]
[1758635416491,3.5159,4192.5,4192.4,0.42906]
[1758635416689,0.251,4192.8,4192.4,0.42906]
[1758635416891,0.73713,4192.7,4192.5,0.42905]
[1758635417089,0.251,4192.8,4192.7,0.42903]
[1758635417390,3.2078,4193.0,4192.9,0.73531]
[1758635417583,0.3081,4193.4,4193.3,0.42897]
[1758635417891,1.09000016,4193.4,4193.3,0.73527]
[1758635418285,3.2078,4193.6,4193.5,0.42894]
[1758635418592,3.4588,4193.6,4193.4,0.42895]
[1758635418791,3.7669,4193.6,4193.4,0.42895]
[1758635419095,3.7669,4193.6,4193.5,0.3063]
[1758635419297,4.29821257,4193.6,4193.5,0.3063]
[1758635419791,3.5159,4194.1,4193.5,0.3063]
[1758635419997,0.78246156,4194.0,4193.5,0.3063]
[1758635420198,0.3081,4193.8,4193.0,0.1231]
[1758635420398,0.53146156,4193.7,4193.6,0.73523]
[1758635420695,0.53146156,4193.7,4193.2,0.42897]
[1758635420895,0.3742,4194.0,4193.4,0.73525]
[1758635420896,0.3081,4193.5,4193.4,0.73525]
[1758635421298,0.4313,4193.5,4192.7,0.3063]
[1758635421491,0.3081,4193.4,4193.2,0.42897]
[1758635421683,0.3081,4193.9,4192.6,3.4588]
[1758635421884,0.53186024,4193.8,4193.7,0.73522]
[1758635422086,0.251,4194.0,4193.7,0.42891]
[1758635422290,0.3081,4193.8,4193.7,0.42891]
[1758635422494,0.3081,4193.8,4193.7,0.3063]
[1758635422703,0.3081,4193.9,4193.4,3.2078]
[1758635422912,0.96089537,4193.8,4193.5,0.42894]
[1758635423199,0.96089537,4193.8,4193.0,0.4294]
[1758635423200,0.4339,4193.5,4192.5,3.3309]
[1758635423400,0.3122,4193.1,4193.0,0.42899]
[1758635423604,0.251,4193.4,4193.0,0.3357]
[1758635423906,1.09532179,4193.3,4192.9,0.3357]
[1758635424206,0.3122,4193.1,4192.6,0.3357]
[1758635424500,0.251,4193.3,4192.5,3.673]
[1758635424501,0.67997,4193.3,4192.5,3.673]
[1758635424701,0.3122,4193.1,4192.5,3.673]
[1758635424899,0.53328152,4193.2,4192.0,0.1231]
[1758635424900,0.3122,4192.9,4192.2,0.42907]
[1758635425103,0.74124,4192.6,4192.0,3.6666]
[1758635425308,0.53348925,4192.5,4192.0,3.5435]
[1758635425504,1.21356431,4192.4,4192.1,0.42909]
[1758635425706,0.3122,4192.3,4192.1,0.42909]
[1758635425906,0.53344746,4192.2,4191.5,0.42915]
[1758635426212,0.1217,4192.0,4191.4,3.2078]
[1758635426397,0.3122,4191.8,4191.4,3.2078]
[1758635426705,0.251,4192.1,4192.0,0.42909]
[1758635427009,0.251,4192.1,4191.7,0.42912]
[1758635427010,0.4291,4192.0,4191.7,0.42912]
[1758635427212,0.3122,4191.6,4191.4,3.63695]
[1758635427412,0.3122,4191.9,4191.5,0.3357]
[1758635427601,0.53360239,4191.8,4191.6,0.76483]
[1758635427801,0.3122,4191.5,4191.4,3.63696]
[1758635428407,3.6369,4192.0,4191.4,3.5435]
[1758635428408,3.2078,4192.0,4191.4,3.5435]
[1758635428605,0.53369037,4191.9,4191.8,0.42912]
[1758635428906,0.78469037,4191.9,4191.8,0.76482]
[1758635429612,0.78469037,4191.9,4191.8,0.3357]
[1758635429808,0.74133,4191.7,4191.5,0.3357]
[1758635430014,0.53369037,4191.6,4191.5,0.3357]
[1758635430405,0.3122,4191.4,4190.9,3.2078]
[1758635430611,4.40228,4192.0,4190.4,3.2078]
[1758635430612,0.53366448,4191.3,4190.4,3.2078]
[1758635430808,0.4292,4191.0,4190.4,3.2078]
[1758635431011,0.3122,4190.8,4190.5,0.3357]
[1758635431309,3.4588,4191.0,4190.0,0.1295]
[1758635431498,0.42934,4189.7,4189.4,3.2078]
[1758635431699,0.42934,4189.7,4189.4,3.63716]
[1758635431700,0.53329485,4189.6,4189.4,3.63716]
[1758635431905,0.3122,4189.7,4189.5,0.42935]
[1758635432108,0.3122,4189.5,4189.4,3.2078]
[1758635432713,0.3122,4189.4,4188.8,3.21804168]
[1758635433012,0.3122,4188.9,4188.8,0.01024168]
[1758635433316,0.3122,4188.9,4187.3,0.3357]
[1758635433317,0.84493996,4188.9,4187.3,0.3357]
[1758635433504,0.84493996,4188.9,4187.2,3.2078]
[1758635433505,0.3122,4187.8,4187.2,3.2078]
[1758635433703,0.3122,4187.3,4187.2,3.2078]
[1758635433913,0.3122,4187.3,4187.2,3.5435]
[1758635433914,0.252,4187.3,4187.2,3.5435]
[1758635434108,3.52,4187.9,4187.2,3.5435]
[1758635434315,0.42956,4187.5,4187.2,3.2078]
[1758635434506,0.3122,4187.3,4187.2,3.2078]
[1758635434712,0.5642,4187.3,4186.7,3.63743]
[1758635435111,0.3122,4187.1,4186.7,3.2078]
[1758635435309,0.252,4187.3,4186.7,3.2078]
[1758635435708,0.252,4187.3,4186.8,0.42963]
[1758635435911,0.3122,4187.2,4186.8,0.76533]
[1758635436314,0.3122,4187.2,4186.8,0.3357]
[1758635436618,0.3122,4186.8,4186.7,3.2078]
[1758635436816,0.5642,4186.8,4186.7,3.2078]
[1758635437019,0.5642,4186.8,4186.5,0.42966]
[1758635437314,0.5642,4186.8,4185.9,3.2078]
[1758635437315,0.42967,4186.5,4186.1,0.3357]
[1758635437614,0.3122,4186.0,4185.9,3.2078]
[1758635437812,0.3122,4185.9,4185.5,0.3357]
[1758635438012,0.5642,4185.9,4185.5,0.3357]
[1758635438207,0.5642,4185.9,4185.7,0.3357]
[1758635438412,3.52,4186.4,4185.8,0.3357]
[1758635438609,3.52,4186.4,4185.4,3.2078]
[1758635438610,3.52,4186.4,4185.6,0.3357]
[1758635438812,0.252,4186.3,4186.2,0.76539]
[1758635439016,0.252,4186.3,4186.2,0.3357]
[1758635439616,0.252,4186.3,4185.7,1.07436]
[1758635439617,0.3122,4186.8,4186.5,0.76536]
[1758635439921,3.2078,4187.0,4186.9,0.3357]
[1758635440113,3.4598,4187.0,4186.9,0.3357]
[1758635440315,3.4598,4187.0,4186.9,0.76532]
[1758635440516,3.2078,4187.0,4186.9,0.76532]
[1758635440817,0.3122,4186.9,4186.7,0.42964]
[1758635441007,3.2078,4187.0,4186.7,0.76534]
[1758635441213,3.2078,4187.0,4186.9,0.76532]
[1758635441618,40.8,4187.6,4187.4,0.76526]
[1758635441919,0.3122,4187.9,4187.2,0.3357]
[1758635442109,0.253,4187.5,4187.4,0.3357]
[1758635443016,3.2078,4188.2,4187.9,0.42951]
[1758635443224,0.252,4188.1,4187.7,0.42953]
[1758635443411,0.252,4188.1,4187.1,0.3357]
[1758635443613,0.252,4188.1,4187.0,3.3373]
[1758635443614,0.42951,4188.0,4187.6,0.76524]
[1758635443923,0.252,4187.9,4187.3,0.3357]
[1758635444218,0.4295,4188.1,4187.8,0.3357]
[1758635444417,0.74173,4187.8,4187.2,0.3357]
[1758635444613,3.2078,4187.7,4187.2,0.3357]
[1758635444809,0.252,4187.6,4187.2,0.76529]
[1758635445019,0.3122,4187.5,4187.3,0.42958]
[1758635445221,0.252,4187.6,4187.3,0.42958]
[1758635445519,0.3122,4187.5,4187.3,0.42958]
[1758635445713,0.252,4187.6,4187.5,0.76526]
[1758635446014,0.252,4187.6,4187.5,0.3357]
[1758635446215,0.252,4187.6,4187.5,0.76526]
[1758635446427,3.2078,4188.2,4188.1,0.4295]
[1758635446614,3.52,4188.2,4188.1,0.4295]
[1758635446818,3.52,4188.2,4188.1,0.7652]
[1758635446819,3.2078,4188.2,4188.1,0.7652]
[1758635447016,0.3122,4188.6,4188.5,0.42946]
[1758635447216,0.252,4188.6,4188.5,0.76516]
[1758635447411,38.83992272,4189.5,4189.0,0.3357]
[1758635447412,3.52,4189.3,4189.0,0.3357]
[1758635447611,0.252,4189.2,4188.8,0.76511]
[1758635447820,0.3122,4189.1,4189.0,0.4294]
[1758635448030,0.3122,4189.1,4188.5,0.1295]
[1758635448031,40.8,4189.1,4188.5,0.3357]
[1758635448215,41.1122,4189.1,4188.5,0.3357]
[1758635448415,0.68138,4189.2,4189.0,0.42939]
[1758635448616,0.3122,4189.1,4189.0,0.42939]
[1758635448912,0.3122,4189.1,4188.4,4.28144]
[1758635448913,0.42944,4188.7,4188.4,3.2078]
[1758635449117,0.42944,4188.7,4188.5,0.42945]
[1758635449118,0.252,4188.7,4188.5,0.42945]
[1758635449319,0.3122,4188.6,4188.5,0.42945]
[1758635449721,0.68144,4188.7,4188.2,0.42948]
[1758635450021,0.1217,4189.0,4188.8,0.42942]
[1758635450022,0.3122,4189.0,4188.8,0.42942]
[1758635450222,0.3122,4189.0,4188.8,0.76512]
[1758635450424,0.252,4188.9,4188.8,0.42942]
[1758635450613,0.252,4188.9,4188.8,0.3357]
[1758635450922,0.74165,4188.6,4188.0,0.1295]
[1758635451114,0.252,4188.6,4188.3,0.42947]
[1758635451420,0.4339,4188.5,4187.9,3.2078]
[1758635451728,0.3122,4188.0,4187.9,3.2078]
[1758635451921,0.5642,4188.0,4187.8,0.42952]
[1758635452218,0.3122,4187.9,4187.8,0.42952]
[1758635452626,0.3122,4188.5,4188.3,0.42946]
[1758635452827,0.252,4188.4,4188.3,0.76516]
[1758635453219,0.75803,4188.7,4188.5,0.42945]
[1758635453524,0.252,4188.6,4188.5,0.73635]
[1758635454025,3.2078,4188.8,4188.7,0.73633]
[1758635455325,0.52898663,4188.8,4188.7,0.73633]
[1758635455628,0.252,4189.0,4188.9,0.73631]
[1758635456124,0.52898772,4189.1,4188.9,0.73631]
[1758635456316,0.78143066,4189.0,4188.9,0.73631]
[1758635457223,0.78143066,4189.0,4188.9,0.3069]
[1758635457415,0.78143066,4189.0,4188.9,0.73631]
[1758635457616,0.78143066,4189.0,4188.5,3.3308]
[1758635457617,0.3286,4188.9,4188.6,0.3069]
[1758635457818,0.252,4189.0,4188.9,0.42941]
[1758635458229,0.78202183,4189.0,4188.9,0.42941]
[1758635458528,0.53002183,4189.0,4188.9,0.73631]
[1758635459527,0.1217,4190.0,4188.9,0.73631]
[1758635459528,0.456,4190.5,4189.1,0.3069]
[1758635459826,0.456,4190.5,4189.0,0.123]
[1758635459827,0.252,4190.4,4190.2,0.42927]
[1758635460032,0.3286,4190.3,4190.2,0.42927]
[1758635460221,0.3286,4190.3,4190.2,0.73617]
[1758635460415,0.252,4190.4,4190.3,0.73616]
[1758635460617,0.5806,4190.4,4190.3,0.3069]
[1758635461022,0.3286,4191.1,4191.0,0.42919]
[1758635461228,0.252,4191.6,4191.1,0.3069]
[1758635461417,41.052,4191.6,4191.0,1.19597]
[1758635461623,0.3286,4191.7,4191.5,0.73604]
[1758635461830,3.2078,4191.9,4191.8,0.3069]
[1758635462126,0.3286,4191.8,4191.2,3.2078]
[1758635462319,3.4598,4191.9,4191.2,3.2078]
[1758635462320,3.88891,4191.9,4191.4,0.42914]
[1758635462522,3.88891,4191.9,4191.5,0.42914]
[1758635462721,0.42913,4191.7,4191.4,0.42915]
[1758635462927,0.3286,4191.6,4191.4,0.42915]
[1758635463226,0.75777,4191.3,4190.8,0.42921]
[1758635463417,0.75777,4191.3,4190.0,1.19624]
[1758635463418,0.1274,4191.0,4190.2,0.3069]
[1758635463617,0.3286,4190.9,4190.8,0.42921]
[1758635464024,0.75781,4190.9,4190.2,0.3069]
[1758635464224,0.75782,4190.8,4190.2,0.3069]
[1758635464420,0.3286,4190.4,4190.1,3.63708]
[1758635464632,0.1274,4190.5,4190.3,0.42926]
[1758635464828,0.3794,4190.5,4190.1,3.2078]
[1758635465132,0.42927,4190.3,4190.0,0.42929]
[1758635465426,0.3286,4190.2,4189.6,3.5147]
[1758635465624,3.5364,4190.2,4189.6,3.5147]
[1758635465823,0.252,4190.5,4190.3,0.42927]
[1758635466019,0.3286,4190.4,4190.1,0.42928]
[1758635466228,0.68125,4190.5,4190.1,0.42928]
[1758635466423,0.3286,4190.4,4190.1,0.42928]
[1758635466623,0.3286,4190.3,4190.1,0.42928]
[1758635466823,0.3286,4190.4,4189.6,3.5147]
[1758635467026,0.3286,4190.0,4189.7,0.42932]
[1758635467333,0.3286,4189.9,4189.7,0.42932]
[1758635467531,0.6803,4190.0,4189.7,0.42932]
[1758635467933,0.42931,4189.9,4189.6,3.2078]
[1758635468128,0.3286,4189.8,4189.6,3.63713]
[1758635468328,0.3286,4189.8,4189.6,3.94403]
[1758635468933,0.3286,4189.8,4189.6,0.73623]
[1758635469123,0.251,4190.0,4189.8,0.42932]
[1758635469328,0.251,4190.0,4189.9,0.3069]
[1758635470432,0.5796,4190.0,4189.4,0.42935]
[1758635470639,0.42934,4189.6,4189.1,3.2078]
[1758635470842,0.3286,4189.5,4189.3,0.73627]
[1758635471140,0.3286,4189.9,4189.8,0.42932]
[1758635471332,0.251,4190.0,4189.1,3.2078]
[1758635471333,0.42935,4189.5,4189.1,3.2078]
[1758635471528,0.84650821,4189.4,4189.2,0.42938]
[1758635471730,0.3193,4189.6,4189.5,0.322]
[1758635471937,0.251,4189.7,4189.6,0.75134]
[1758635472231,0.52727889,4189.7,4189.2,1.07345]
[1758635472432,0.52727889,4189.6,4189.2,1.07345]
[1758635472632,0.52727889,4189.5,4189.4,0.75136]
[1758635472830,0.3193,4190.2,4189.2,1.07345]
[1758635472831,0.251,4189.8,4189.7,0.42933]
[1758635473033,3.2078,4190.3,4190.2,0.75128]
[1758635473337,3.2078,4190.8,4190.7,0.75122]
[1758635473536,0.52773055,4190.8,4190.7,0.75122]
[1758635474838,3.2078,4191.9,4191.8,0.322]
[1758635475033,3.73560387,4191.9,4191.8,0.322]
[1758635475838,4.05490387,4191.9,4191.8,0.322]
[1758635476039,0.52780387,4191.9,4191.8,0.322]
[1758635476242,0.52780387,4191.9,4191.8,4.322]
[1758635476738,3.73560387,4191.9,4191.5,0.322]
[1758635476941,0.42917,4191.3,4190.6,0.322]
[1758635477241,3.73560387,4191.2,4191.1,0.322]
[1758635477436,0.42924,4190.6,4189.8,3.5298]
[1758635477639,0.77843334,4190.5,4190.1,0.42928]
[1758635477850,0.42927,4190.3,4189.8,3.95911]
[1758635478146,0.84673334,4190.2,4190.0,0.42929]
[1758635478330,0.52743334,4190.1,4189.8,3.2078]
[1758635478536,0.52743334,4190.0,4189.9,0.75131]
[1758635478736,0.52750755,4190.4,4190.3,0.322]
[1758635480750,0.52750755,4190.4,4190.3,3.5298]
[1758635481048,0.42919,4191.1,4190.8,0.322]
[1758635481242,0.3193,4191.4,4190.9,0.322]
[1758635481243,0.95695658,4191.0,4190.9,0.322]
[1758635481433,0.52775658,4191.0,4190.9,0.322]
[1758635481637,0.52775658,4191.0,4190.4,0.322]
[1758635481844,0.252,4191.1,4190.3,3.2078]
[1758635481845,0.52775658,4190.9,4190.7,0.42922]
[1758635482136,0.52775658,4190.8,4190.7,0.42922]
[1758635482539,0.252,4191.4,4190.6,1.39509]
[1758635482733,0.68112,4191.7,4191.0,0.1339]
[1758635482939,0.3193,4191.9,4191.6,0.322]
[1758635483135,0.3138,4191.7,4191.3,0.74556]
[1758635483346,0.84179404,4191.6,4191.3,0.74556]
[1758635483541,0.52799404,4191.5,4191.4,0.3164]
[1758635483846,0.42911,4191.8,4191.5,0.42914]
[1758635484042,0.52820011,4191.7,4191.6,0.74553]
[1758635484348,0.84200011,4191.7,4191.5,3.2078]
[1758635484644,0.52820011,4191.6,4191.5,3.95334]
[1758635484845,0.34831178,4191.6,4191.5,4.08424]
[1758635485149,0.42903,4192.7,4192.5,0.3164]
[1758635485341,0.74283,4192.7,4192.5,0.3164]
[1758635485539,3.4598,4192.9,4192.0,3.2078]
[1758635485741,0.74287,4192.2,4192.0,3.2078]
[1758635486046,0.3138,4192.1,4192.0,3.2078]
[1758635486351,0.3138,4192.1,4191.4,0.3164]
[1758635486352,0.3138,4191.8,4191.4,0.3164]
[1758635486545,0.42911,4191.8,4191.4,0.3164]
[1758635486747,0.3138,4191.7,4191.5,0.42914]
[1758635487050,0.3138,4191.6,4191.5,0.42914]
[1758635487446,0.7429,4191.9,4191.7,0.3164]
[1758635487746,0.3138,4191.7,4191.5,0.74554]
[1758635488248,0.3138,4191.9,4191.6,0.74552]
[1758635488545,0.74286,4192.4,4192.0,0.3164]
[1758635488743,0.42906,4192.3,4191.8,0.3164]
[1758635488950,3.2078,4192.2,4191.6,0.3164]
[1758635489140,0.3138,4191.9,4191.7,0.42912]
[1758635489340,3.63687,4192.2,4191.6,0.3164]
[1758635489542,0.3138,4192.0,4191.9,0.4291]
[1758635489946,3.2078,4192.2,4191.6,0.3164]
[1758635490247,0.3138,4192.1,4191.8,0.7455]
[1758635490442,0.74288,4192.1,4191.9,0.4291]
[1758635490746,0.99483,4192.6,4191.9,0.3164]
[1758635490956,0.5658,4192.6,4192.4,0.42905]
[1758635491149,0.3138,4192.5,4192.2,0.42907]
[1758635491342,0.3138,4192.4,4192.2,0.42907]
[1758635491644,0.3138,4192.3,4191.7,0.42912]
[1758635491836,0.3138,4192.0,4191.8,0.42911]
[1758635492039,0.3138,4192.0,4191.9,0.4291]
[1758635492651,0.3138,4191.9,4191.8,0.42911]
[1758635492954,0.3138,4191.9,4190.8,3.5242]
[1758635492955,0.3138,4191.7,4190.8,3.5242]
[1758635493139,40.8,4191.9,4190.8,0.42921]
[1758635493140,0.3138,4191.1,4190.8,0.42921]
[1758635493347,3.2078,4191.2,4191.0,0.42919]
[1758635493546,0.252,4191.1,4191.0,0.74559]
[1758635493744,0.252,4191.1,4191.0,0.3164]
[1758635493948,0.5658,4191.1,4190.9,0.4292]
[1758635494241,0.99499,4191.1,4190.9,0.3164]
[1758635494446,0.252,4191.1,4191.0,0.3164]
[1758635494747,0.3138,4192.2,4191.3,0.3164]
[1758635494953,0.3138,4192.2,4191.5,0.1309]
[1758635495250,0.3138,4192.1,4191.5,0.4473]
[1758635495554,0.252,4192.2,4191.8,0.42911]
[1758635495744,0.3138,4192.1,4191.9,0.7455]
[1758635496246,0.252,4192.2,4191.9,0.7455]
[1758635496247,3.2078,4192.8,4192.7,0.3164]
[1758635496458,0.4365,4193.5,4193.2,0.3164]
[1758635496459,3.2078,4193.4,4193.2,0.3164]
[1758635496944,0.52715556,4193.3,4192.5,3.3387]
[1758635497150,0.95612556,4193.2,4192.9,0.429]
[1758635497345,0.1227,4193.0,4192.5,3.2078]
[1758635497551,0.52715556,4192.9,4192.7,0.42902]
[1758635497851,0.52715556,4192.8,4192.7,0.42902]